bitfinex/quotes_BTCUSD_20230111
["timestamp","ask_amount","ask_price","bid_price","bid_amount"]
[1673447335945,0.00131554,17394.0,17393.0,4.6713046]
[1673447336448,0.00131554,17394.0,17393.0,5.10128223]
[1673447336708,0.00131554,17394.0,17393.0,5.10128194]
[1673447336969,0.56816256,17396.0,17393.0,5.10128194]
[1673447337243,0.56816256,17396.0,17395.0,0.77199078]
[1673447337506,0.56816256,17396.0,17395.0,2.54618854]
[1673447337739,0.56816256,17396.0,17395.0,4.27163589]
[1673447338526,0.56816256,17396.0,17395.0,3.97163589]
[1673447338777,0.56816256,17396.0,17395.0,3.79416137]
[1673447339822,1.2716876,17396.0,17395.0,2.14729359]
[1673447340167,0.73316256,17396.0,17395.0,2.14729359]
[1673447341628,0.73316256,17396.0,17395.0,2.44729359]
[1673447341879,0.73316256,17396.0,17395.0,2.14729359]
[1673447342146,0.73316256,17396.0,17395.0,2.44729359]
[1673447344944,0.73316256,17396.0,17395.0,1.57241659]
[1673447345200,1.6310015,17396.0,17395.0,1.57241659]
[1673447345714,1.63093617,17396.0,17395.0,1.57241659]
[1673447346223,1.63093617,17396.0,17395.0,0.99753959]
[1673447346737,1.96073617,17396.0,17395.0,0.99753959]
[1673447348044,1.25733456,17396.0,17395.0,0.99753959]
[1673447348296,0.89766256,17396.0,17395.0,1.29753959]
[1673447348560,0.89766256,17396.0,17395.0,1.87241659]
[1673447349083,0.89766256,17396.0,17395.0,2.04440737]
[1673447350372,0.73266256,17396.0,17395.0,2.04440737]
[1673447352928,0.73266256,17396.0,17395.0,2.30239354]
[1673447353430,0.73266256,17396.0,17395.0,0.99753959]
[1673447353699,0.73266256,17396.0,17395.0,1.16953037]
[1673447353700,1.09233456,17396.0,17395.0,1.16953037]
[1673447354214,0.73266256,17396.0,17395.0,1.16953037]
[1673447354472,0.73266256,17396.0,17395.0,1.74440737]
[1673447354725,0.73266256,17396.0,17395.0,2.04440737]
[1673447354975,0.73266256,17396.0,17395.0,1.46953037]
[1673447355243,1.61495373,17396.0,17395.0,0.99753959]
[1673447355780,1.61505773,17396.0,17395.0,0.99753959]
[1673447356072,0.71738256,17396.0,17395.0,0.99753959]
[1673447356327,0.71738256,17396.0,17395.0,1.16953037]
[1673447356857,1.07705456,17396.0,17395.0,0.99753959]
[1673447357107,1.07705456,17396.0,17395.0,1.16953037]
[1673447357351,0.71738256,17396.0,17395.0,1.16953037]
[1673447358870,0.71738256,17396.0,17395.0,1.76953037]
[1673447359128,0.71738256,17396.0,17395.0,2.32751654]
[1673447359369,0.71738256,17396.0,17395.0,2.06953037]
[1673447360402,0.71738256,17396.0,17395.0,1.76953037]
[1673447362144,0.71738256,17396.0,17395.0,2.06953037]
[1673447362652,0.71738256,17396.0,17395.0,2.32751654]
[1673447362897,0.71738256,17396.0,17395.0,2.06953037]
[1673447363438,0.71738256,17396.0,17395.0,2.38793401]
[1673447363701,0.71738256,17396.0,17395.0,2.38793418]
[1673447364186,0.71738256,17396.0,17395.0,2.24693418]
[1673447364437,0.71838256,17396.0,17395.0,2.38793418]
[1673447364715,1.25655624,17396.0,17395.0,1.22994801]
[1673447364973,1.61622824,17396.0,17395.0,1.16953037]
[1673447365480,1.61622824,17396.0,17395.0,0.99753959]
[1673447365481,1.78092824,17396.0,17395.0,0.99753959]
[1673447365769,1.78092824,17396.0,17395.0,1.16953037]
[1673447366003,1.42125624,17396.0,17395.0,1.16953037]
[1673447366502,1.78092824,17396.0,17395.0,1.16953037]
[1673447367029,1.77992824,17396.0,17395.0,0.85653959]
[1673447367269,1.77992824,17396.0,17395.0,0.93753959]
[1673447367515,1.77992824,17396.0,17395.0,1.10953037]
[1673447368011,1.42025624,17396.0,17395.0,1.10953037]
[1673447368787,1.77992824,17396.0,17395.0,0.93753959]
[1673447369813,1.95233953,17396.0,17395.0,0.93753959]
[1673447370069,2.11663953,17396.0,17395.0,0.93753959]
[1673447370342,2.84669499,17396.0,17395.0,0.93753959]
[1673447371125,2.84169499,17396.0,17395.0,0.93753959]
[1673447371381,3.24494377,17396.0,17395.0,0.93753959]
[1673447373012,2.67009977,17396.0,17395.0,0.93753959]
[1673447373276,2.41147384,17396.0,17395.0,0.93753959]
[1673447373547,2.67009977,17396.0,17395.0,0.93753959]
[1673447376414,2.41147384,17396.0,17395.0,0.93753959]
[1673447377657,2.24677384,17396.0,17395.0,0.93753959]
[1673447379460,1.77452824,17396.0,17395.0,0.93753959]
[1673447379732,1.22664568,17396.0,17395.0,1.53753959]
[1673447379990,0.524172,17396.0,17395.0,1.53753959]
[1673447381526,1.06205228,17396.0,17395.0,1.53753959]
[1673447383085,0.524172,17396.0,17395.0,1.53753959]
[1673447383629,0.1645,17396.0,17395.0,1.53753959]
[1673447384111,0.524172,17396.0,17395.0,1.53753959]
[1673447384356,0.1645,17396.0,17395.0,1.53753959]
[1673447384599,0.524172,17396.0,17395.0,1.53753959]
[1673447385620,0.1645,17396.0,17395.0,1.70953037]
[1673447386198,0.1645,17396.0,17395.0,0.681]
[1673447386690,0.524172,17396.0,17395.0,0.681]
[1673447387200,0.70253326,17396.0,17395.0,0.681]
[1673447387452,0.70242079,17396.0,17395.0,0.681]
[1673447387712,1.06209279,17396.0,17395.0,0.681]
[1673447388511,0.70242079,17396.0,17395.0,0.681]
[1673447389047,1.06209279,17396.0,17395.0,0.681]
[1673447393268,1.23433839,17396.0,17395.0,0.681]
[1673447393515,1.06209279,17396.0,17395.0,0.681]
[1673447397393,1.39963839,17396.0,17395.0,0.081]
[1673447397629,1.82985954,17396.0,17395.0,0.081]
[1673447397885,1.95828719,17396.0,17395.0,0.081]
[1673447398361,1.69966126,17396.0,17395.0,0.681]
[1673447399084,1.95828719,17396.0,17395.0,0.681]
[1673447399798,1.69966126,17396.0,17395.0,0.681]
[1673447400286,1.39966126,17396.0,17395.0,0.681]
[1673447400547,0.524172,17396.0,17395.0,0.681]
[1673447400842,0.1645,17396.0,17395.0,0.85299078]
[1673447401076,0.17448216,17397.0,17396.0,8.244e-05]
[1673447401335,0.17252216,17397.0,17396.0,0.17233583]
[1673447401581,0.53219416,17397.0,17396.0,0.57492644]
[1673447402350,0.53219416,17397.0,17396.0,0.58592644]
[1673447403343,1.30849554,17397.0,17396.0,0.01108244]
[1673447403605,1.40748612,17397.0,17396.0,0.01108244]
[1673447404617,1.96611205,17397.0,17396.0,0.01108244]
[1673447406554,2.7124954,17397.0,17396.0,0.01108244]
[1673447407026,3.86225145,17397.0,17396.0,8.244e-05]
[1673447407269,4.03310194,17397.0,17396.0,8.244e-05]
[1673447407517,4.77314937,17397.0,17396.0,8.244e-05]
[1673447407775,5.16886339,17397.0,17396.0,8.244e-05]
[1673447408008,5.88536339,17397.0,17396.0,8.244e-05]
[1673447408979,5.89436339,17397.0,17396.0,0.00808244]
[1673447409243,4.17792454,17397.0,17396.0,0.00808244]
[1673447409546,3.43871354,17397.0,17396.0,0.00808244]
[1673447409711,3.2664714,17397.0,17396.0,0.00808244]
[1673447411202,2.6916604,17397.0,17396.0,0.00808244]
[1673447412438,1.09319416,17397.0,17396.0,0.00808244]
[1673447413430,0.37669416,17397.0,17396.0,0.00808244]
[1673447415391,0.91518576,17397.0,17396.0,0.00808244]
[1673447415625,1.08742643,17397.0,17396.0,0.00808244]
[1673447415869,1.34578467,17397.0,17396.0,0.00808244]
[1673447417861,1.08742643,17397.0,17396.0,0.00808244]
[1673447418343,0.91499898,17397.0,17396.0,0.00808244]
[1673447418588,1.08723965,17397.0,17396.0,0.00808244]
[1673447419820,0.54893483,17397.0,17396.0,0.00808244]
[1673447420065,0.91503419,17397.0,17396.0,0.00808244]
[1673447420550,0.37669416,17397.0,17396.0,0.00808244]
[1673447420805,0.37669416,17397.0,17396.0,0.48033583]
[1673447421066,0.01702216,17397.0,17396.0,2.47793375]
[1673447421317,0.01702216,17397.0,17396.0,3.01003233]
[1673447421569,0.01702216,17397.0,17396.0,2.65036033]
[1673447421802,0.01702216,17397.0,17396.0,2.90856115]
[1673447422055,0.01702216,17397.0,17396.0,2.65036033]
[1673447422306,0.00802216,17397.0,17396.0,2.64236033]
[1673447422544,0.00790872,17397.0,17396.0,2.72336033]
[1673447422793,0.00790872,17397.0,17396.0,2.64236033]
[1673447423041,0.00790872,17397.0,17396.0,2.72336033]
[1673447423288,0.00790872,17397.0,17396.0,3.72336033]
[1673447423767,0.00934891,17398.0,17397.0,0.3]
[1673447424005,0.00934891,17398.0,17397.0,3.03264723]
[1673447424247,0.00934891,17398.0,17397.0,3.56452787]
[1673447424834,0.00934891,17398.0,17397.0,3.90206991]
[1673447425583,0.00934891,17398.0,17397.0,3.91306991]
[1673447425824,0.00934891,17398.0,17397.0,4.17095927]
[1673447426068,0.00934891,17398.0,17397.0,3.74098454]
[1673447426557,0.00934891,17398.0,17397.0,3.79315817]
[1673447426793,0.00934891,17398.0,17397.0,4.17096149]
[1673447427035,0.00705282,17398.0,17397.0,3.91306991]
[1673447427528,0.00705282,17398.0,17397.0,3.96524354]
[1673447427772,0.00705282,17398.0,17397.0,4.53896989]
[1673447428006,0.00705282,17398.0,17397.0,4.85469696]
[1673447428007,0.00576456,17398.0,17397.0,4.85469696]
[1673447428763,0.0035616,17398.0,17397.0,4.33855849]
[1673447429952,0.00591158,17399.0,17398.0,0.3]
[1673447430205,0.00994673,17400.0,17398.0,4.9882775]
[1673447430464,0.00994673,17400.0,17399.0,2.60494694]
[1673447430732,0.00994673,17400.0,17399.0,4.14826684]
[1673447430995,0.00994673,17400.0,17399.0,4.09754492]
[1673447431259,0.00994673,17400.0,17399.0,3.91963694]
[1673447431526,0.00994673,17400.0,17399.0,3.5414795]
[1673447432086,0.00994673,17400.0,17399.0,4.52341099]
[1673447432401,0.00994673,17400.0,17399.0,4.09497546]
[1673447432593,0.00994673,17400.0,17399.0,4.23397546]
[1673447432860,0.00994673,17400.0,17399.0,4.45165628]
[1673447433374,0.00988013,17400.0,17399.0,4.10890446]
[1673447433634,0.00988013,17400.0,17399.0,4.05818254]
[1673447433897,0.00988013,17400.0,17399.0,4.45140727]
[1673447434405,0.00988013,17400.0,17399.0,5.04535494]
[1673447434656,0.00591158,17402.0,17399.0,5.25634809]
[1673447434910,0.00591158,17402.0,17401.0,2.46814511]
[1673447435168,0.00591158,17402.0,17401.0,5.43689547]
[1673447435421,0.00591158,17402.0,17401.0,5.73689547]
[1673447435928,2.76513048,17407.0,17402.0,0.3]
[1673447436187,2.76513048,17407.0,17406.0,0.6]
[1673447436443,0.09563048,17407.0,17406.0,2.049028]
[1673447436726,0.09563048,17407.0,17406.0,2.213628]
[1673447436975,0.09563048,17407.0,17406.0,2.049028]
[1673447437501,0.09563048,17407.0,17406.0,2.04997039]
[1673447437758,0.09563048,17407.0,17406.0,3.38057039]
[1673447438058,0.09563048,17407.0,17406.0,3.74024239]
[1673447438316,0.09563048,17407.0,17406.0,3.75230239]
[1673447438566,0.09563048,17407.0,17406.0,3.91750239]
[1673447439092,0.09563048,17407.0,17406.0,3.74020239]
[1673447439356,0.09563048,17407.0,17406.0,2.18476]
[1673447439641,0.09563048,17407.0,17406.0,1.825088]
[1673447440379,0.09563048,17407.0,17406.0,0.07606]
[1673447440380,0.25953048,17407.0,17406.0,0.07606]
[1673447440631,0.25953048,17407.0,17406.0,0.67606]
[1673447440894,0.09563048,17407.0,17406.0,1.825088]
[1673447441168,0.09563048,17407.0,17406.0,2.825088]
[1673447441684,0.09563048,17407.0,17406.0,3.125088]
[1673447442195,0.09563048,17407.0,17406.0,3.290388]
[1673447443498,0.09563048,17407.0,17406.0,3.125088]
[1673447444052,0.09063048,17407.0,17406.0,3.125088]
[1673447445090,0.09063048,17407.0,17406.0,3.12603039]
[1673447445380,0.09063048,17407.0,17406.0,3.125088]
[1673447445932,0.09063048,17407.0,17406.0,2.125088]
[1673447446186,0.09063048,17407.0,17406.0,8.125088]
[1673447446442,0.09063048,17407.0,17406.0,6.07606]
[1673447446443,0.32830837,17407.0,17406.0,6.07606]
[1673447446709,0.09063048,17407.0,17406.0,6.07606]
[1673447447206,0.09063048,17407.0,17406.0,6.67606]
[1673447447456,0.09063048,17407.0,17406.0,7.250574]
[1673447447731,0.09063048,17407.0,17406.0,7.550574]
[1673447448464,0.09063048,17407.0,17406.0,6.950514]
[1673447448720,0.09063048,17407.0,17406.0,6.650514]
[1673447448993,0.09063048,17407.0,17406.0,6.076]
[1673447449275,0.61560248,17407.0,17406.0,6.076]
[1673447449486,0.84770943,17407.0,17406.0,6.076]
[1673447449736,1.01300943,17407.0,17406.0,6.076]
[1673447449977,0.84770943,17407.0,17406.0,6.076]
[1673447450515,0.84770943,17407.0,17406.0,6.0]
[1673447450516,0.54770943,17407.0,17406.0,6.0]
[1673447451043,0.54770943,17407.0,17406.0,6.008]
[1673447453138,0.18803743,17407.0,17406.0,6.608]
[1673447453393,0.18803743,17407.0,17406.0,6.008]
[1673447453645,0.54770943,17407.0,17406.0,6.008]
[1673447454906,1.70389785,17407.0,17406.0,5.10311038]
[1673447455164,1.12941685,17407.0,17406.0,5.10311038]
[1673447455445,1.42941685,17407.0,17406.0,0.008]
[1673447456971,1.01160943,17407.0,17406.0,0.008]
[1673447457720,1.43308822,17407.0,17406.0,0.008]
[1673447457978,2.58305022,17407.0,17406.0,0.008]
[1673447458980,1.43408822,17407.0,17406.0,0.008]
[1673447459229,2.58305022,17407.0,17406.0,0.008]
[1673447460459,2.75529089,17407.0,17406.0,0.008]
[1673447460724,2.58305022,17407.0,17406.0,0.008]
[1673447461937,2.75529089,17407.0,17406.0,0.008]
[1673447462443,2.75276662,17407.0,17406.0,0.008]
[1673447462954,1.01260943,17407.0,17406.0,0.008]
[1673447463309,0.84750943,17407.0,17406.0,0.008]
[1673447463507,0.54750943,17407.0,17406.0,0.008]
[1673447464042,0.02273743,17407.0,17406.0,0.308]
[1673447465079,0.02273743,17407.0,17406.0,0.882514]
[1673447466104,0.56041532,17407.0,17406.0,0.008]
[1673447466358,0.84590943,17407.0,17406.0,0.008]
[1673447467453,0.48623743,17407.0,17406.0,0.008]
[1673447467717,0.47190743,17407.0,17406.0,0.008]
[1673447467977,0.83157943,17407.0,17406.0,0.008]
[1673447468550,0.17190743,17407.0,17406.0,0.008]
[1673447468807,0.17190743,17407.0,17406.0,0.308]
[1673447468808,0.00840743,17407.0,17406.0,0.308]
[1673447470366,0.00840743,17407.0,17406.0,0.882514]
[1673447470915,0.00840743,17407.0,17406.0,0.008]
[1673447471940,0.17330743,17407.0,17406.0,0.008]
[1673447472208,1.22590732,17407.0,17406.0,0.008]
[1673447472468,1.98512868,17407.0,17406.0,0.008]
[1673447472725,2.55839395,17407.0,17406.0,0.008]
[1673447472983,2.13719143,17407.0,17404.0,6e-05]
[1673447473242,0.470131,17406.0,17405.0,0.6]
[1673447474001,0.1641,17406.0,17405.0,0.6]
[1673447474250,0.523772,17406.0,17405.0,0.6]
[1673447474784,0.92654989,17406.0,17404.0,6e-05]
[1673447475083,2.44524355,17406.0,17405.0,0.077]
[1673447475282,3.1542959,17406.0,17405.0,0.077]
[1673447476558,3.32653804,17406.0,17404.0,6e-05]
[1673447476605,3.49846068,17406.0,17405.0,0.008]
[1673447476816,2.82527787,17406.0,17405.0,0.008]
[1673447477072,3.15467787,17406.0,17405.0,0.008]
[1673447477336,3.32723804,17406.0,17404.0,6e-05]
[1673447477597,3.20820324,17406.0,17405.0,0.00806]
[1673447477865,4.31603171,17406.0,17405.0,6e-05]
[1673447478116,6.28244434,17406.0,17405.0,6e-05]
[1673447478383,0.3,17405.0,17400.0,0.00472721]
[1673447478656,0.3302,17401.0,17400.0,0.00472721]
[1673447478915,1.18243675,17401.0,17400.0,0.00472721]
[1673447479429,0.524772,17401.0,17400.0,0.00472721]
[1673447479687,0.1651,17401.0,17400.0,0.00472721]
[1673447479989,2.42341336,17401.0,17400.0,0.14572721]
[1673447480767,2.25831336,17401.0,17400.0,0.14572721]
[1673447481026,2.55831336,17401.0,17400.0,0.14572721]
[1673447482283,2.55831336,17401.0,17400.0,0.00472721]
[1673447483115,2.56931336,17401.0,17400.0,0.01472721]
[1673447483621,2.55831336,17401.0,17400.0,0.00472721]
[1673447483893,2.57731336,17401.0,17400.0,0.01272721]
[1673447484161,2.57731336,17401.0,17400.0,0.00472721]
[1673447484162,2.55831336,17401.0,17400.0,0.00472721]
[1673447484956,0.3,17400.0,17399.0,0.00471249]
[1673447485211,4.2526663,17400.0,17399.0,0.00471249]
[1673447485472,3.2611663,17400.0,17399.0,0.00471249]
[1673447485752,3.4274663,17400.0,17399.0,0.00471249]
[1673447486015,3.4274663,17400.0,17399.0,0.01271249]
[1673447486016,3.2733663,17400.0,17399.0,0.01271249]
[1673447489688,2.67941863,17400.0,17399.0,0.01271249]
[1673447489949,2.096955,17400.0,17399.0,0.01271249]
[1673447490202,2.51365542,17400.0,17399.0,0.01271249]
[1673447492616,3.01728886,17400.0,17399.0,0.01271249]
[1673447492871,2.67845542,17400.0,17399.0,0.01271249]
[1673447493141,3.90673331,17400.0,17399.0,0.01271249]
[1673447493400,3.66905542,17400.0,17399.0,0.01271249]
[1673447493925,4.26300309,17400.0,17399.0,0.01271249]
[1673447495321,3.27000309,17400.0,17399.0,0.01271249]
[1673447497739,1.520443,17400.0,17399.0,0.01271249]
[1673447498002,1.356543,17400.0,17399.0,0.01271249]
[1673447499065,0.781831,17400.0,17399.0,0.01271249]
[1673447499592,1.19847256,17400.0,17399.0,0.01271249]
[1673447500116,1.77318456,17400.0,17399.0,0.01271249]
[1673447500377,2.67659656,17400.0,17399.0,0.01271249]
[1673447500630,2.51149656,17400.0,17399.0,0.01271249]
[1673447501150,2.67659656,17400.0,17399.0,0.01271249]
[1673447501459,2.51149656,17400.0,17399.0,0.01271249]
[1673447501672,2.61284144,17400.0,17399.0,0.01271249]
[1673447501932,2.51149656,17400.0,17399.0,0.01271249]
[1673447502199,2.67659656,17400.0,17399.0,0.01271249]
[1673447503224,2.51149656,17400.0,17399.0,0.01271249]
[1673447505774,2.34669656,17400.0,17399.0,0.01271249]
[1673447507803,2.51179656,17400.0,17399.0,0.01271249]
[1673447508545,2.51179656,17400.0,17399.0,0.01263451]
[1673447508797,3.82069656,17400.0,17399.0,0.01263451]
[1673447509592,5.13277423,17400.0,17399.0,0.01263451]
[1673447509860,0.00677385,17398.0,17395.0,0.00015]
[1673447510115,0.3286,17396.0,17395.0,0.00015]
[1673447510421,2.43891546,17396.0,17395.0,0.00015]
[1673447510679,2.66633757,17396.0,17395.0,0.00015]
[1673447510934,3.89511546,17396.0,17395.0,0.00015]
[1673447511185,3.65743757,17396.0,17395.0,0.00015]
[1673447511436,2.80153757,17396.0,17395.0,0.005]
[1673447511707,2.80153757,17396.0,17394.0,0.00471249]
[1673447511708,2.66753757,17396.0,17394.0,0.00471249]
[1673447511952,1.749788,17396.0,17395.0,0.005]
[1673447512213,2.4706135,17396.0,17395.0,0.005]
[1673447512507,2.3356135,17396.0,17394.0,0.00471249]
[1673447512740,0.716231,17395.0,17394.0,0.00471249]
[1673447513026,1.70758848,17395.0,17394.0,0.00471249]
[1673447513234,1.291108,17395.0,17394.0,0.00471249]
[1673447513490,1.70758848,17395.0,17394.0,0.00471249]
[1673447513998,2.28246548,17395.0,17394.0,0.00471249]
[1673447514330,2.35146548,17395.0,17394.0,0.01071249]
[1673447514532,2.28246548,17395.0,17394.0,0.00471249]
[1673447514787,2.41646548,17395.0,17394.0,0.00971249]
[1673447515056,2.28246548,17395.0,17394.0,0.00471249]
[1673447515314,2.35146548,17395.0,17394.0,0.01071249]
[1673447516327,2.39256548,17395.0,17394.0,0.00471249]
[1673447516584,2.808602,17395.0,17394.0,0.00971249]
[1673447516845,2.698402,17395.0,17394.0,0.00971249]
[1673447517348,3.40254967,17395.0,17394.0,0.00971249]
[1673447517631,3.66045445,17395.0,17394.0,0.00971249]
[1673447518353,3.29244967,17395.0,17394.0,0.00971249]
[1673447518603,3.55035445,17395.0,17394.0,0.00971249]
[1673447519383,3.55028558,17395.0,17394.0,0.00610514]
[1673447520413,3.2923808,17395.0,17394.0,0.00610514]
[1673447520715,3.55028558,17395.0,17394.0,0.00610514]
[1673447521480,3.2923808,17395.0,17394.0,0.00610514]
[1673447521775,3.01034428,17395.0,17394.0,0.00610514]
[1673447522052,3.44018558,17395.0,17394.0,0.00610514]
[1673447522305,3.1822808,17395.0,17394.0,0.00610514]
[1673447522574,3.44018558,17395.0,17394.0,0.00610514]
[1673447522848,3.55028558,17395.0,17394.0,0.00610514]
[1673447523100,3.72029753,17395.0,17394.0,0.00610514]
[1673447523392,3.55028558,17395.0,17394.0,0.00610514]
[1673447523648,3.89415862,17395.0,17394.0,0.00610514]
[1673447523946,3.55028558,17395.0,17394.0,0.00610514]
[1673447524227,3.65998558,17395.0,17394.0,0.00610514]
[1673447524485,5.73020003,17395.0,17394.0,0.00610514]
[1673447524760,7.41240822,17395.0,17394.0,0.00610514]
[1673447525021,6.63869388,17395.0,17394.0,0.00610514]
[1673447525278,7.63830192,17395.0,17394.0,0.00610514]
[1673447525546,0.905,17394.0,17393.0,0.00472721]
[1673447525798,0.905,17393.0,17390.0,0.00803781]
[1673447526096,0.2202,17391.0,17390.0,0.00803781]
[1673447526350,2.03396058,17391.0,17390.0,0.00803781]
[1673447526636,2.44416058,17391.0,17390.0,0.00803781]
[1673447527165,2.44416058,17391.0,17390.0,0.00788781]
[1673447527458,2.57916058,17391.0,17390.0,0.00788781]
[1673447527975,3.29076058,17391.0,17390.0,0.00788781]
[1673447528517,2.57916058,17391.0,17390.0,0.00788781]
[1673447529354,2.35876058,17391.0,17390.0,0.00788781]
[1673447531434,2.46866058,17391.0,17390.0,0.00788781]
[1673447531676,2.55411272,17391.0,17390.0,0.00788781]
[1673447531938,2.35876058,17391.0,17390.0,0.00788781]
[1673447532220,2.57916058,17391.0,17390.0,0.00788781]
[1673447532450,2.46896058,17391.0,17390.0,0.00788781]
[1673447532954,1.31894058,17391.0,17390.0,0.00788781]
[1673447533210,0.794672,17391.0,17390.0,0.60788781]
[1673447533466,0.494672,17391.0,17390.0,0.60788781]
[1673447533721,0.135,17391.0,17390.0,0.60788781]
[1673447534263,0.135,17391.0,17390.0,0.90883106]
[1673447534519,0.135,17391.0,17390.0,1.18770306]
[1673447534778,0.135,17391.0,17390.0,0.96850306]
[1673447535030,0.135,17391.0,17390.0,0.90883106]
[1673447535292,0.71398654,17394.0,17390.0,1.26850306]
[1673447535548,0.015,17391.0,17390.0,0.92183106]
[1673447536066,0.015,17391.0,17390.0,1.28150306]
[1673447536580,0.71413078,17394.0,17390.0,1.84354606]
[1673447536839,0.315,17394.0,17392.0,0.6]
[1673447537089,0.3,17395.0,17392.0,0.6]
[1673447538200,1.11856089,17395.0,17392.0,0.612]
[1673447538456,0.359672,17394.0,17392.0,0.612]
[1673447538732,0.72289666,17394.0,17392.0,0.612]
[1673447539016,0.72289666,17394.0,17392.0,0.012]
[1673447539017,2.63634044,17394.0,17392.0,0.012]
[1673447539291,0.659672,17393.0,17392.0,0.012]
[1673447539539,1.07451564,17393.0,17391.0,0.46688055]
[1673447539791,0.306031,17392.0,17391.0,0.46688055]
[1673447540073,0.95793569,17392.0,17391.0,0.001]
[1673447540322,1.6488758,17392.0,17391.0,0.001]
[1673447540641,2.4434528,17392.0,17391.0,0.001]
[1673447540943,3.05040047,17392.0,17391.0,0.014]
[1673447541460,3.05040047,17392.0,17391.0,0.001]
[1673447541461,3.03740047,17392.0,17391.0,0.001]
[1673447542274,3.20909679,17392.0,17391.0,0.001]
[1673447542528,3.06300047,17392.0,17391.0,0.002]
[1673447543541,2.92800047,17392.0,17391.0,0.001]
[1673447543794,3.06300047,17392.0,17391.0,0.002]
[1673447545064,3.76481998,17392.0,17391.0,0.002]
[1673447545567,2.95280047,17392.0,17391.0,0.002]
[1673447545833,3.06300047,17392.0,17391.0,0.002]
[1673447546610,3.23469679,17392.0,17391.0,0.002]
[1673447546835,3.06300047,17392.0,17391.0,0.002]
[1673447547158,3.68159373,17392.0,17391.0,0.002]
[1673447547602,3.68119373,17392.0,17391.0,0.002]
[1673447547868,3.57139373,17392.0,17391.0,0.002]
[1673447548405,2.97744606,17392.0,17391.0,0.002]
[1673447548894,2.64074912,17392.0,17391.0,0.002]
[1673447549152,3.36218191,17392.0,17391.0,0.002]
[1673447549391,3.10463739,17392.0,17391.0,0.002]
[1673447550180,2.78809364,17392.0,17391.0,0.002]
[1673447550472,2.89769364,17392.0,17391.0,0.001]
[1673447550701,3.52269289,17392.0,17391.0,0.001]
[1673447552494,3.52269289,17392.0,17391.0,0.002]
[1673447552761,3.06939676,17392.0,17391.0,0.002]
[1673447553013,5.16918976,17392.0,17391.0,0.002]
[1673447553793,5.16990262,17392.0,17391.0,0.002]
[1673447554294,5.76385029,17392.0,17391.0,0.002]
[1673447554548,4.99048869,17392.0,17391.0,0.001]
[1673447555068,5.59548869,17392.0,17391.0,0.001]
[1673447555332,0.905,17391.0,17390.0,0.00556941]
[1673447555586,0.3,17390.0,17386.0,0.00759629]
[1673447555857,0.1102,17388.0,17386.0,0.00759629]
[1673447556133,0.95839514,17387.0,17386.0,0.00759629]
[1673447556375,1.6405778,17387.0,17386.0,0.00759629]
[1673447556893,1.63990613,17387.0,17386.0,0.00759629]
[1673447557157,2.29957813,17387.0,17386.0,0.01959629]
[1673447557475,1.93990613,17387.0,17386.0,0.00759629]
[1673447557679,1.93990613,17387.0,17386.0,0.01959629]
[1673447557680,1.95490613,17387.0,17386.0,0.01959629]
[1673447558458,2.31457813,17387.0,17386.0,0.01959629]
[1673447559527,2.2491287,17387.0,17386.0,0.01959629]
[1673447559780,2.51939,17387.0,17386.0,0.01959629]
[1673447560136,3.1345398,17387.0,17386.0,0.01959629]
[1673447560554,3.1345398,17387.0,17386.0,0.00759629]
[1673447560555,2.94750579,17387.0,17386.0,0.00759629]
[1673447560821,2.94750579,17387.0,17386.0,0.01859629]
[1673447560822,2.96250579,17387.0,17386.0,0.01859629]
[1673447561081,2.94750579,17387.0,17386.0,0.00759629]
[1673447561352,1.2748218,17387.0,17386.0,0.00759629]
[1673447561596,0.9151498,17387.0,17386.0,0.00759629]
[1673447562621,1.2748218,17387.0,17386.0,0.00759629]
[1673447562886,1.0501498,17387.0,17386.0,0.00859629]
[1673447563152,0.9151498,17387.0,17386.0,0.00759629]
[1673447563413,0.9301498,17387.0,17386.0,0.01859629]
[1673447565454,1.2898218,17387.0,17386.0,0.01859629]
[1673447565703,1.70205442,17387.0,17386.0,0.01859629]
[1673447565965,2.62507431,17387.0,17386.0,0.01859629]
[1673447566227,2.62010519,17387.0,17386.0,0.01859629]
[1673447566478,3.02321318,17387.0,17386.0,0.01859629]
[1673447566741,3.02321318,17387.0,17386.0,0.00759629]
[1673447566742,3.18024719,17387.0,17386.0,0.00759629]
[1673447566996,3.01421318,17387.0,17386.0,0.01759629]
[1673447567525,2.33838862,17387.0,17386.0,0.00759629]
[1673447567797,2.33238862,17387.0,17386.0,0.00759629]
[1673447568032,2.50442263,17387.0,17386.0,0.00759629]
[1673447568569,2.46238862,17387.0,17386.0,0.00859629]
[1673447568827,2.33238862,17387.0,17386.0,0.00759629]
[1673447569089,2.63942263,17387.0,17386.0,0.00859629]
[1673447569334,3.25476385,17387.0,17386.0,0.00859629]
[1673447569589,3.19553468,17387.0,17386.0,0.00859629]
[1673447571634,2.46738862,17387.0,17386.0,0.00859629]
[1673447573195,2.22719001,17387.0,17386.0,0.00859629]
[1673447573447,2.78272187,17387.0,17386.0,0.00859629]
[1673447573696,3.37666954,17387.0,17386.0,0.00859629]
[1673447574231,3.20463553,17387.0,17386.0,0.00859629]
[1673447575023,3.37666954,17387.0,17386.0,0.00859629]
[1673447576038,3.63472056,17387.0,17386.0,0.00859629]
[1673447576549,4.16888639,17387.0,17386.0,0.00859629]
[1673447576806,3.9784756,17387.0,17386.0,0.00859629]
[1673447577060,3.80612684,17387.0,17386.0,0.00859629]
[1673447577844,4.15019486,17387.0,17386.0,0.00859629]
[1673447578868,6.39184669,17387.0,17385.0,0.00258194]
[1673447579121,2.40459888,17386.0,17385.0,0.00258194]
[1673447579628,4.54553355,17386.0,17385.0,0.00258194]
[1673447581462,4.99980157,17386.0,17385.0,0.00258194]
[1673447581701,8.06033412,17386.0,17385.0,1.94e-06]
[1673447581975,8.78495141,17386.0,17384.0,0.01101964]
[1673447582228,4.43092375,17385.0,17384.0,0.01101964]
[1673447582488,4.61629862,17385.0,17384.0,0.01101964]
[1673447582710,5.3370869,17385.0,17384.0,0.01101964]
[1673447583290,5.16515058,17385.0,17384.0,0.01101964]
[1673447583532,4.27541376,17385.0,17384.0,0.01101964]
[1673447583801,3.55261376,17385.0,17384.0,0.01101964]
[1673447584066,3.68861376,17385.0,17384.0,0.01101964]
[1673447584832,4.37556728,17385.0,17384.0,0.01101964]
[1673447587599,0.66743786,17385.0,17384.0,0.65599127]
[1673447587861,0.30776586,17385.0,17384.0,0.65599127]
[1673447588135,0.66243786,17385.0,17384.0,0.65599127]
[1673447588636,0.52643786,17385.0,17384.0,0.01101964]
[1673447588889,2.64506361,17385.0,17384.0,0.01501964]
[1673447589141,3.19663216,17385.0,17384.0,0.01101964]